Cogmind - Beta 9.3 @@@ ROGUE MODE // 2019.12.28 @ 15:38:46 Player: cptwinky Result: Destroyed by G-34 Mercenary with Small Laser Performance ------------- Evolutions (0) 0 Regions Visited (2) 400 Robots Destroyed (20) 100 Value Destroyed (404) 404 Prototype IDs (4) 80 Alien Tech Used (0) 0 Bonus (0) 0 TOTAL SCORE: 984 Bonus ------- None Cogmind --------- Core Integrity 0/250 Matter 269/300 Energy 125/125 System Corruption 0% Temperature Cool (12) Movement Walking (120) Location -10/Mines Parts ------- > --- POWER (1) -------- Light Ion Engine > --- PROPULSION (2) --- Improved Aluminum Leg Improved Aluminum Leg > --- UTILITY (2) ------ Medium Storage Unit > --- WEAPON (2) ------- Light Assault Rifle Light Assault Rifle > --- INVENTORY (8) ---- Improved Aluminum Leg Improved Aluminum Leg Light Assault Rifle Mining Laser Peak State ------------ > --- POWER ------------ Light Deuterium Engine > --- PROPULSION ------- Improved Aluminum Leg Improved Aluminum Leg > --- UTILITY ---------- Medium Storage Unit Improved Terrain Scanner > --- WEAPON ----------- Light Assault Rifle Light Assault Rifle > --- INVENTORY -------- Improved Aluminum Leg Improved Aluminum Leg Mining Laser [Rating: 12] Favorites ----------- Power Light Ion Engine Engine Light Ion Engine Propulsion Light Treads Treads Light Treads Leg Improved Aluminum Leg Wheel Wheel Utility Improved Terrain Scanner Device Improved Terrain Scanner Storage Medium Storage Unit Weapon Light Assault Rifle Ballistic Gun Light Assault Rifle Build | -11 -10 -10 ------- Run | Scr Mat Min Slots Evolved . | . . . Power . | . . . Propulsion . | . . . Utility . | . . . Weapon . | . . . Parts Attached 15 | 7 2 6 Power 4 | 1 1 2 Engine 4 | 1 1 2 Core . | . . . Reactor . | . . . Propulsion 4 | 2 . 2 Treads 1 | 1 . . Leg 2 | . . 2 Wheel 1 | 1 . . Hover . | . . . Flight . | . . . Utility 3 | 2 1 . Device 1 | 1 . . Storage 2 | 1 1 . Processor . | . . . Hackware . | . . . Protection . | . . . Artifact . | . . . Weapon 4 | 2 . 2 Energy Gun . | . . . Energy Cannon . | . . . Ballistic Gun 4 | 2 . 2 Ballistic Cannon . | . . . Launcher . | . . . Special Weapon . | . . . Impact Weapon . | . . . Slashing Weapon . | . . . Piercing Weapon . | . . . Special Melee Weapon . | . . . Unidentified Prototypes . | . . . Parts Lost 6 | . . 6 Power 1 | . . 1 Propulsion 2 | . . 2 Utility 1 | . . 1 Weapon 2 | . . 2 Highest Loss Streak 4 | . . 4 Average Slot Usage (%) 99 | . 100 98 Engine 14 | . 14 14 Treads 12 | . 14 11 Leg 3 | . . 5 Wheel 12 | . 14 10 Device 13 | . 14 13 Storage 14 | . 14 14 Ballistic Gun 27 | . 28 27 Naked Turns . | . . . Heaviest Build 17 | 11 15 17 Greatest Support 26 | 10 10 26 Greatest Overweight (x) 1 | 1 1 1 Average Overweight (x) . | . 1 . Largest Inventory Capacity 8 | 6 8 8 Average Capacity 7 | 5 6 8 Most Carried 8 | 3 8 8 Average Carried 5 | 2 6 6 Final Capacity 8 | 6 8 8 Final Carried 8 | 3 8 4 Class Distribution -------------------- 87% | Mutant 12% | Scavenger-Mutant Dominant Class ---------------- Mutant | -10/Materials Mutant | -10/Mines Resources | -11 -10 -10 ----------- Run | Scr Mat Min Matter Collected 571 | 290 131 150 Remotely . | . . . Salvage Created 630 | 79 364 187 Parts 44 | 4 21 19 Haulers Intercepted 1 | . 1 . Recyclers Shooed 1 | . 1 . Parts Field Recycled . | . . . Retrieved Matter . | . . . Parts Self-Destructed . | . . . Prevented . | . . . Kills | -11 -10 -10 ------- Run | Scr Mat Min Combat Hostiles Destroyed 17 | . 7 10 Guns 17 | . 7 10 Classes Destroyed 6 | 2 2 2 Tunneler 1 | 1 . . Hauler 1 | . 1 . Recycler 1 | 1 . . Swarmer 6 | . . 6 Grunt 9 | . 7 2 Assembled 2 | . . 2 Best Kill Streak 5 | 2 5 3 Combat Bots Only 5 | . 5 3 Max Kills in Single Turn 1 | 1 1 1 Gunslinging . | . . . Exploded . | . . . Melee . | . . . Uniques/NPCs Destroyed . | . . . Combat | -11 -10 -10 -------- Run | Scr Mat Min Damage Taken 950 | . 222 728 Core 260 | . 67 193 Absorbed by Shields . | . . . Core Remaining (%) 100 | 100 . . Volleys Fired 85 | 5 34 46 Largest 2 | 2 2 2 Hottest 40 | 40 40 40 Shots Fired 161 | 10 68 83 Gun 161 | 10 68 83 Cannon . | . . . Launcher . | . . . Special . | . . . Kinetic 161 | 10 68 83 Thermal . | . . . Explosive . | . . . Electromagnetic . | . . . Robot Hit Streak 28 | 5 28 10 Robot Miss Streak 8 | 1 2 8 Penetration Max . | . . . Secondary Targets 2 | . . 2 Max Gunslinging Chain 1 | . . 1 Shots Hit Robots 109 | 8 51 50 Core Hits 37 | 3 17 17 Critical Hits 2 | . 1 1 Critical Kills 1 | . 1 . Critical Parts Destroyed 1 | . . 1 Melee Attacks . | . . . Impact . | . . . Slashing . | . . . Piercing . | . . . Sneak Attacks . | . . . Combat Hostiles . | . . . Follow-up Attacks . | . . . Damage Inflicted 1028 | 75 477 476 Guns 1028 | 75 477 476 Cannons . | . . . Explosions . | . . . Melee . | . . . Ramming . | . . . Kinetic 1028 | 75 477 476 Thermal . | . . . Explosive . | . . . Electromagnetic . | . . . Impact . | . . . Slashing . | . . . Piercing . | . . . Highest Corruption . | . . . Average Corruption . | . . . Corruption Purged . | . . . Overload Shots . | . . . Overflow Damage . | . . . Projectiles . | . . . Explosions . | . . . Melee . | . . . Knockbacks . | . . . Impact . | . . . Kinetic . | . . . Secondary . | . . . Self-Inflicted Damage . | . . . Shots . | . . . Rammed . | . . . Targets Rammed . | . . . Kicked . | . . . Crushed . | . . . Highest Temperature 18 | . 6 18 Average Temperature 4 | . 6 4 Received Heat Transfer 219 | . 105 114 Siege Activations . | . . . Robots Corrupted . | . . . Combat Hostiles . | . . . Parts Fried . | . . . Impact Corruptions . | . . . Robots Melted . | . . . Combat Hostiles . | . . . Parts Melted . | . . . Heat Transferred . | . . . Parts Sabotaged . | . . . Parts Stolen . | . . . Parts Stripped . | . . . Power Chain Reactions . | . . . Missiles Intercepted . | . . . Alert | -11 -10 -10 ------- Run | Scr Mat Min Peak Influence 209 | 10 209 136 Average Influence 90 | 3 117 84 Maximum Alert Level 1 | . 1 . Low Security (%) 92 | 100 79 100 Level 1 7 | . 20 . Level 2 . | . . . Level 3 . | . . . Level 4 . | . . . Level 5 . | . . . High Security . | . . . Max Security . | . . . Squads Dispatched 4 | . 3 1 Investigation 4 | . 3 1 Extermination . | . . . Reinforcement . | . . . Assault . | . . . Garrison . | . . . Intercept . | . . . Construction Impeded . | . . . Haulers Reinforced . | . . . Stealth | -11 -10 -10 --------- Run | Scr Mat Min Distress Signals 1 | . . 1 Communications Jammed . | . . . Distress Signals . | . . . Times Spotted 22 | . 9 13 Peak Tracking Total 3 | . 3 3 Tactical Retreats 1 | . . 1 Traps | -11 -10 -10 ------- Run | Scr Mat Min Traps Triggered 1 | . 1 . Indirectly . | . . . Trap Hack Attempts . | . . . Triggered . | . . . Disarmed . | . . . Reprogrammed . | . . . Reused 3 | . . 3 Traps Extracted . | . . . Installed 3 | . . 3 Triggered . | . . . Machines | -11 -10 -10 ---------- Run | Scr Mat Min Machines Disabled 1 | . 1 . Max in Single Turn 1 | . 1 . Machines Sabotaged . | . . . Garrisons Compromised . | . . . Overloaded Fab Kills . | . . . Fab Network Shutdowns . | . . . Hacking | -11 -10 -10 --------- Run | Scr Mat Min Machines Accessed 4 | . 3 1 Terminals 4 | . 3 1 Fabricators . | . . . Repair Stations . | . . . Recycling Units . | . . . Scanalyzers . | . . . Garrison Access . | . . . Total Hacks 13 | . 11 2 Successful 5 | . 4 1 Failed 7 | . 6 1 Catastrophic . | . . . Database Lockouts 1 | . 1 . Manual 7 | . 5 2 Terminals 13 | . 11 2 Fabricators . | . . . Repair Stations . | . . . Recycling Units . | . . . Scanalyzers . | . . . Garrison Access . | . . . Terminal Hacks 5 | . 4 1 Robot Analysis 1 | . 1 . Prototype ID Bank 2 | . 2 . Branch Access Points 1 | . 1 . Zone Layout 1 | . . 1 Fabricator Hacks . | . . . Repair Station Hacks . | . . . Recycling Unit Hacks . | . . . Scanalyzer . | . . . Garrison Access Hacks . | . . . Unauthorized Hacks . | . . . Terminals . | . . . Fabricators . | . . . Repair Stations . | . . . Recycling Units . | . . . Scanalyzers . | . . . Garrison Access . | . . . Data Cores Recovered . | . . . Used . | . . . Hacking Detections 3 | . 2 1 Full Trace Events 3 | . 2 1 Feedback Events . | . . . Feedback Blocked . | . . . Robot Schematics Acquired . | . . . Robots Built . | . . . Matter . | . . . Time . | . . . Total Robot Build Rating . | . . . Part Schematics Acquired . | . . . Parts Built . | . . . Matter . | . . . Time . | . . . Total Part Build Rating . | . . . Parts Repaired . | . . . Time . | . . . Parts Recycled . | . . . Recycled Matter . | . . . Retrieved Matter . | . . . Retrieved Components . | . . . Parts Scanalyzed . | . . . Part Schematics Acquired . | . . . Parts Damaged . | . . . Bothacking | -11 -10 -10 ------------ Run | Scr Mat Min Used RIF Installer . | . . . Robots Hacked . | . . . Non-combat . | . . . Combat . | . . . Robot Hacks Applied . | . . . Relay Couplers Released . | . . . Robots Rewired . | . . . Allies Hacked . | . . . Hacks Repelled . | . . . Allies | -11 -10 -10 -------- Run | Scr Mat Min Total Allies . | . . . Largest Group . | . . . Highest-Rated Group . | . . . Highest-Rated Ally . | . . . Total Orders . | . . . Ally Attacks . | . . . Total Damage . | . . . Kills . | . . . Allies Corrupted . | . . . Allies Melted . | . . . Intel | -11 -10 -10 ------- Run | Scr Mat Min Robot Analysis Total 1 | . 1 . Derelict Logs Recovered . | . . . Drone Launches . | . . . Drone Recoveries . | . . . Exploration | -11 -10 -10 ------------- Run | Scr Mat Min Turns Passed 1030 | 69 363 598 Spaces Moved 560 | 49 245 266 Core 2 | 2 . . Treads 1 | . . 1 Legs 47 | . . 47 Wheels 510 | 47 245 218 Hover . | . . . Flight . | . . . Fastest Speed 50 | 50 90 90 Average Speed 92 | 82 90 95 Slowest Speed 160 | 90 90 160 Overloaded Moves . | . . . Propulsion Burnouts . | . . . Robots Hopped . | . . . Cave-ins Triggered . | . . . Exploration Rate (%) 24 | 3 31 40 Regions Visited 2 Branch Regions 1 Pre-discovered Areas . | . . . Known Exits Taken 1 | . 1 . Unknown Exits Taken 1 | 1 . . Scrap Searched 1 | . . 1 Spaces Dug . | . . . Terrain Destroyed . | . . . Melee . | . . . Projectile . | . . . AOE . | . . . Actions | -11 -10 -10 --------- Run | Scr Mat Min Total 934 | 64 327 543 Wait 245 | 1 34 210 Move 558 | 48 244 266 Hop . | . . . Pick Up 17 | 3 9 5 Fast Attach 10 | 7 . 3 Attach 3 | . . 3 Detach 1 | . . 1 Swap 2 | . 2 . Drop 10 | . 4 6 Fire 85 | 5 34 46 Melee . | . . . Ram . | . . . Kick . | . . . Crush . | . . . Escape Stasis . | . . . Rewire . | . . . Trap 3 | . . 3 Miscellaneous . | . . . Route ------- -11/Scrapyard -10/Materials -10/Mines History --------- Turn | Location | Event 19 | -11/Scrapyard | Discovered new exit (range 14) 70 | -11/Scrapyard | Entered Materials 165 | -10/Materials | Identified exit to Mines 310 | -10/Materials | Build established: Mutant 370 | -10/Materials | Central database locked down 433 | -10/Materials | Entered Mines 448 | -10/Mines | Found a hidden stash of uninstalled traps 479 | -10/Mines | Met a Derelict bent on vengeance 496 | -10/Mines | Assembled infested the area 813 | -10/Mines | Core integrity fell below 50% 941 | -10/Mines | Lost 4 parts (2n2w) 1009 | -10/Mines | Core integrity fell below 20% 1031 | -10/Mines | Destroyed by G-34 Mercenary with Small Laser Last Messages --------------- 00941_ Acquired 15 matter. 00946_ Acquired 11 matter. 00947_ Acquired 23 matter. 00949_ K-01 Serf cleans the Laser Drill. 00966_ S-10 Pest destroyed. 00968_ Acquired 6 matter. 00970_ K-01 Serf collects debris. 00980_ Connecting with Terminal... >>Layout(Zone) Retrieving Zone 7H layout... Downloaded map data. 00980_ ALERT: Suspicious activity at Terminal M001. Dispatching Investigation squad. 00998_ Lgt. Deuterium Engine destroyed. 01007_ G-34 Mercenary destroyed. 01014_ Imp. Terrain Scanner destroyed. 01017_ G-34 Mercenary destroyed. 01017_ Switching to secondary target: G-34 Mercenary. 01023_ G-34 Mercenary suffers critical hit. 01023_ Destroyed Heat Sink. Map ----- +----------------------------------------------------+ | ???#?????????????????????????????????????????????? | | ?????????????????????????????????????????????????? | | ?#???????????????????????????????????????????????? | | ????????????????????????????????????????????????? | | ?????????????????????????????????????????????????? | | ????????????????????????????????????????????????? | | ?????????????????????????????????????????????????? | | ?????????????????????????????????????????????????? | | ?????????????????????????????????????????????????? | | #???????????????????????????????????????????????? | | ???#?????????????????????????????????????????????? | | ???#??#??#???????????????????????????????????????? | | ?????????????????????????????????????????????????? | | ##????#??????????????#???????????#???????????????? | | ?????????????# #???????????#????????????????? | | ????#???#????# """ #????????#???????????????????? | | #??#???#?????# """ #?????????????? ?????????????? | | ???????????#?# """ #??????#?????????????????????? | | ?############# #????????????????????????????? | | ?# #????????????????????????????? | | ?# ########### #????#???#???????????????????? | | ## #???#????#########???#????????????????????????? | | # #?????????????????????????????????????????????? | | ## ###?##########????????????????????????????????? | | ##=# ### ################ #???????????????? | | = %% =% """ @ %== ##??????????????? | | ### ### """ [%g #???????????????? | | # # #?# """ ##################???????????????? | | # # ##?# #??#?????#???????????????????????? | | ##???########T#????#???????????????????????????? | | ?#????##?????####??????#?????????????????????????? | | | | | | | | | | | | | | | | | | | | | | | | | | | | | | | | | | | | | | | +----------------------------------------------------+ Best States ------------- Heat Dissipation 25 Energy Generation 14 Energy Capacity 140 Matter Stores 300 Matter Capacity 300 Sight Range 16 Terrain Scan Range 16 Terrain Scan Density 10 Evasion (%) 44 Recoil Reduction 1 Item Schematics ----------------- None Robot Schematics ------------------ None Fabricated ------------ Nothing Alien Tech Used ----------------- None Achievements -------------- None Challenges ------------ Fragile Parts Game ------ Seed NetworkCompositeInjector Manual? 0 Play Time 00:12:03 Cumulative 446.9 hours Start 2019.12.28 @ 15:30:50 End 2019.12.28 @ 15:38:46 Sessions 1 Manual Loads 0 Difficulty Rogue Special Mode None Game No. 341 Rogue 337 Adventurer 4 Explorer 0 Win Type - Total 44 Types 36/3/1/2/2/0/0 Lore% 93 Gallery% 94 Achievement% 92 Wizard Run 0 Options --------- ASCII 0 Keyboard 0 Movement Vi Keybinds 0 Fullscreen 0 Font 16/Terminus Map View 76x50 Tactical HUD 1 Map Filters NONE Filters NONE Steam 1 RUN: ecace03f-0dab-4c15-9771-3d22c4d0a8f5